bitfinex/quotes_BTCUSD_20241021
["timestamp","ask_amount","ask_price","bid_price","bid_amount"]
[1729501064272,0.38844842,68390.0,68389.0,0.000828]
[1729501064499,0.48380272,68390.0,68389.0,0.000828]
[1729501064750,0.41020455,68390.0,68389.0,0.000828]
[1729501064979,0.48380227,68390.0,68389.0,0.000828]
[1729501066349,0.5708259,68390.0,68389.0,0.000828]
[1729501066585,0.48380227,68390.0,68389.0,0.000828]
[1729501067069,0.57082821,68390.0,68389.0,0.000828]
[1729501068461,0.48380227,68390.0,68389.0,0.000828]
[1729501068697,0.57082642,68390.0,68389.0,0.000828]
[1729501069606,0.48380227,68390.0,68389.0,0.000828]
[1729501069830,0.59255551,68390.0,68389.0,0.000828]
[1729501070811,0.48380227,68390.0,68389.0,0.000828]
[1729501071035,0.57082661,68390.0,68389.0,0.000828]
[1729501071257,0.57082471,68390.0,68389.0,0.000828]
[1729501071489,0.48380033,68390.0,68389.0,0.000828]
[1729501071718,0.57082471,68390.0,68389.0,0.000828]
[1729501071945,0.48380033,68390.0,68389.0,0.000828]
[1729501074287,0.59258081,68390.0,68389.0,0.000828]
[1729501075798,0.99927845,68390.0,68389.0,0.000828]
[1729501076056,0.91849797,68390.0,68389.0,0.000828]
[1729501076297,1.04903455,68390.0,68389.0,0.000828]
[1729501076551,0.91033691,68390.0,68389.0,0.000828]
[1729501077061,0.105,68389.0,68370.0,0.21601299]
[1729501077320,0.146259,68372.0,68370.0,0.21601299]
[1729501077825,0.146259,68372.0,68370.0,0.00037647]
[1729501078608,0.14625,68376.0,68370.0,0.00037647]
[1729501078856,0.146258,68373.0,68370.0,0.00037647]
[1729501079106,0.21563652,68380.0,68370.0,0.00037647]
[1729501079107,0.146259,68372.0,68370.0,0.00037647]
[1729501080272,0.149259,68372.0,68370.0,0.00037647]
[1729501080775,0.150259,68372.0,68370.0,0.00037647]
[1729501081003,0.004,68372.0,68370.0,0.00037647]
[1729501082399,0.150259,68372.0,68370.0,0.00037647]
[1729501082865,0.004,68372.0,68370.0,0.00037647]
[1729501086089,0.004,68372.0,68370.0,0.00120347]
[1729501088180,0.150258,68372.0,68370.0,0.00120347]
[1729501088418,0.14626,68371.0,68370.0,0.00120347]
[1729501088652,0.004,68372.0,68370.0,0.00120347]
[1729501088892,0.150259,68372.0,68370.0,0.00120347]
[1729501089610,0.149259,68372.0,68370.0,0.00120347]
[1729501089864,0.001,68371.0,68370.0,0.00120347]
[1729501090094,0.146259,68372.0,68370.0,0.00120347]
[1729501090327,0.003,68371.0,68370.0,0.00120347]
[1729501091472,0.001,68372.0,68370.0,0.00120347]
[1729501091711,0.146257,68373.0,68370.0,0.00120347]
[1729501091943,0.003,68372.0,68370.0,0.00120347]
[1729501092684,0.001,68371.0,68370.0,0.00120347]
[1729501092917,0.003,68372.0,68370.0,0.00120347]
[1729501093152,0.001,68372.0,68370.0,0.00120347]
[1729501094318,0.004,68372.0,68370.0,0.00120347]
[1729501096876,0.150258,68372.0,68370.0,0.00120347]
[1729501098289,0.004,68372.0,68370.0,0.00120347]
[1729501098523,0.150259,68372.0,68370.0,0.00120347]
[1729501099894,0.14626,68371.0,68370.0,0.00120347]
[1729501100402,0.150258,68372.0,68370.0,0.00120347]
[1729501100624,0.004,68372.0,68370.0,0.00120347]
[1729501100846,0.001,68372.0,68370.0,0.00120347]
[1729501101076,0.003,68371.0,68370.0,0.00120347]
[1729501101530,0.001,68372.0,68370.0,0.00120347]
[1729501101755,0.146259,68372.0,68370.0,0.00120347]
[1729501101985,0.001,68371.0,68370.0,0.00120347]
[1729501102681,0.14626,68371.0,68370.0,0.00120347]
[1729501104014,0.14926,68371.0,68370.0,0.00120347]
[1729501104244,0.23036,68371.0,68370.0,0.00120347]
[1729501104705,0.15026,68371.0,68370.0,0.00120347]
[1729501105423,0.156722,68371.0,68370.0,0.00120347]
[1729501112206,0.20023211,68371.0,68370.0,0.00120347]
[1729501113654,0.20022763,68371.0,68370.0,0.00120347]
[1729501118389,0.156722,68371.0,68370.0,0.00120347]
[1729501119335,0.20023937,68371.0,68370.0,0.00120347]
[1729501119575,0.156722,68371.0,68370.0,0.00120347]
[1729501121274,0.22198045,68371.0,68370.0,0.00120347]
[1729501121741,0.43761697,68371.0,68370.0,0.00120347]
[1729501121970,1.00535135,68371.0,68370.0,0.00120347]
[1729501122198,0.9202914,68371.0,68370.0,0.00120347]
[1729501122436,0.86861483,68371.0,68370.0,0.00120347]
[1729501122669,0.7386631,68371.0,68370.0,0.00120347]
[1729501122913,0.7346631,68371.0,68370.0,0.00120347]
[1729501123380,0.7626631,68371.0,68370.0,0.00120347]
[1729501123614,0.76255495,68371.0,68370.0,0.00120347]
[1729501126023,0.4346958,68371.0,68370.0,0.00120347]
[1729501126263,0.034462,68371.0,68370.0,0.00120347]
[1729501126501,0.180722,68371.0,68370.0,0.00120347]
[1729501127927,0.30201521,68371.0,68370.0,0.00120347]
[1729501128157,0.258522,68371.0,68370.0,0.00120347]
[1729501128383,0.30201809,68371.0,68370.0,0.00120347]
[1729501130712,0.50358115,68371.0,68370.0,0.00120347]
[1729501131159,0.54707696,68371.0,68370.0,0.00120347]
[1729501131635,0.48958115,68371.0,68370.0,0.00120347]
[1729501131882,0.74871484,68371.0,68370.0,0.00120347]
[1729501132117,0.6501411,68371.0,68370.0,0.00120347]
[1729501132624,0.75862575,68371.0,68370.0,0.00120347]
[1729501133085,0.7726185,68371.0,68370.0,0.00120347]
[1729501133318,0.74988761,68371.0,68370.0,0.00120347]
[1729501134262,0.73588761,68371.0,68370.0,0.00120347]
[1729501134494,0.74988761,68371.0,68370.0,0.00120347]
[1729501135426,0.76388761,68371.0,68370.0,0.00120347]
[1729501135649,0.74988761,68371.0,68370.0,0.00120347]
[1729501135876,0.76388761,68371.0,68370.0,0.00120347]
[1729501136393,0.79188761,68371.0,68370.0,0.00120347]
[1729501136616,0.79388761,68371.0,68370.0,0.00120347]
[1729501136835,0.79188761,68371.0,68370.0,0.00120347]
[1729501137059,0.78688761,68371.0,68370.0,0.00120347]
[1729501137283,0.79188761,68371.0,68370.0,0.00120347]
[1729501137518,0.76388761,68371.0,68370.0,0.00120347]
[1729501138446,0.79388761,68371.0,68370.0,0.00120347]
[1729501138670,0.84917307,68371.0,68370.0,0.00120347]
[1729501139884,0.453465,68369.0,68368.0,0.000827]
[1729501140123,0.80825757,68369.0,68368.0,0.000827]
[1729501140343,0.96378807,68369.0,68368.0,0.000827]
[1729501140600,0.146299,68353.0,68352.0,0.000827]
[1729501140836,0.76577069,68353.0,68352.0,0.000827]
[1729501141082,0.8723058,68353.0,68352.0,0.000827]
[1729501141334,0.320412,68347.0,68346.0,0.000829]
[1729501141576,0.46937115,68347.0,68346.0,0.000829]
[1729501141803,0.51279298,68347.0,68346.0,0.000829]
[1729501142051,0.34519812,68347.0,68346.0,0.000829]
[1729501142547,0.30177629,68347.0,68346.0,0.000829]
[1729501142776,0.31577629,68347.0,68346.0,0.000829]
[1729501143472,0.33877629,68347.0,68346.0,0.000829]
[1729501143729,0.53467629,68347.0,68346.0,0.000829]
[1729501144019,0.146342,68333.0,68332.0,0.21563652]
[1729501144509,0.146342,68333.0,68325.0,0.11729452]
[1729501144510,0.292692,68332.0,68325.0,0.146358]
[1729501144725,0.14635,68329.0,68325.0,0.146358]
[1729501145242,0.29909038,68332.0,68325.0,0.146358]
[1729501145243,0.44543638,68332.0,68327.0,0.146354]
[1729501145439,0.146349,68330.0,68326.0,0.146355]
[1729501145670,0.292651,68341.0,68325.0,0.292718]
[1729501145915,0.21563652,68335.0,68332.0,0.000828]
[1729501146381,0.146342,68333.0,68332.0,0.000828]
[1729501146893,0.29268,68334.0,68332.0,0.000828]
[1729501146894,0.14634,68334.0,68332.0,0.000828]
[1729501147166,0.0064927,68333.0,68332.0,0.000828]
[1729501148315,0.005,68333.0,68332.0,0.000828]
[1729501148568,0.01149256,68333.0,68332.0,0.000828]
[1729501148808,0.005,68333.0,68332.0,0.000828]
[1729501149045,0.155342,68333.0,68332.0,0.000828]
[1729501149283,0.009,68333.0,68332.0,0.000828]
[1729501149526,0.01549471,68333.0,68332.0,0.000828]
[1729501149771,0.01149471,68333.0,68332.0,0.000828]
[1729501150027,0.16383671,68333.0,68332.0,0.000828]
[1729501150501,0.011,68333.0,68332.0,0.000828]
[1729501150745,0.16378823,68333.0,68332.0,0.000828]
[1729501150975,0.15878823,68333.0,68332.0,0.000828]
[1729501151209,0.16478823,68333.0,68332.0,0.000828]
[1729501151436,0.152342,68333.0,68332.0,0.000828]
[1729501151879,0.153342,68333.0,68332.0,0.000828]
[1729501152099,0.156342,68333.0,68332.0,0.000828]
[1729501152550,0.29530115,68333.0,68332.0,0.000828]
[1729501152775,0.32030115,68333.0,68332.0,0.000828]
[1729501153221,0.41430115,68333.0,68332.0,0.000828]
[1729501153923,0.014,68333.0,68332.0,0.000828]
[1729501154151,0.292667,68337.0,68332.0,0.000828]
[1729501154152,0.29267,68337.0,68332.0,0.000828]
[1729501154388,0.01,68333.0,68332.0,0.000828]
[1729501154620,0.170342,68333.0,68332.0,0.000828]
[1729501154849,0.0064367,68333.0,68332.0,0.147172]
[1729501155072,0.1647787,68333.0,68332.0,0.000828]
[1729501155297,0.170342,68333.0,68332.0,0.000828]
[1729501155541,0.16474879,68333.0,68332.0,0.000828]
[1729501155765,0.156342,68333.0,68332.0,0.000828]
[1729501156428,0.167342,68333.0,68332.0,0.000828]
[1729501157325,0.157342,68333.0,68332.0,0.000828]
[1729501157566,0.025,68333.0,68332.0,0.000828]
[1729501157792,0.014,68333.0,68332.0,0.083928]
[1729501158026,0.03440679,68333.0,68332.0,0.083928]
[1729501158261,0.02040679,68333.0,68332.0,0.230272]
[1729501158488,0.02040679,68333.0,68332.0,0.083928]
[1729501158711,0.03440679,68333.0,68332.0,0.083928]
[1729501158947,0.00640679,68333.0,68332.0,0.083928]
[1729501159173,0.02040679,68333.0,68332.0,0.083928]
[1729501159439,0.014,68333.0,68332.0,0.000828]
[1729501159661,0.02040679,68333.0,68332.0,0.000828]
[1729501160111,0.16674879,68333.0,68332.0,0.000828]
[1729501160556,0.18074879,68333.0,68332.0,0.000828]
[1729501161004,0.014,68333.0,68332.0,0.147172]
[1729501161217,0.028,68333.0,68332.0,0.000828]
[1729501162381,0.174342,68333.0,68332.0,0.000828]
[1729501163763,0.17416592,68333.0,68332.0,0.000828]
[1729501164670,0.17416592,68333.0,68332.0,0.00046536]
[1729501166942,0.146345,68332.0,68327.0,0.14181836]
[1729501167161,0.146345,68332.0,68327.0,0.13681836]
[1729501167624,0.146345,68332.0,68327.0,0.13181836]
[1729501167856,0.02782392,68333.0,68324.0,0.37317896]
[1729501167857,0.01382392,68333.0,68326.0,0.29271]
[1729501168091,0.011,68332.0,68327.0,0.29271]
[1729501168315,0.021,68332.0,68324.0,0.08045696]
[1729501168538,0.021,68332.0,68329.0,0.146349]
[1729501168773,0.021,68332.0,68329.0,0.14635]
[1729501169004,0.021,68332.0,68325.0,0.292718]
[1729501169005,0.167345,68332.0,68326.0,0.146357]
[1729501169258,0.167345,68332.0,68325.0,0.293546]
[1729501169259,0.011,68332.0,68325.0,0.293546]
[1729501169487,0.146347,68331.0,68327.0,0.146354]
[1729501170153,0.007,68332.0,68325.0,0.293543]
[1729501170429,0.146348,68330.0,68326.0,0.146355]
[1729501171135,0.30469,68332.0,68325.0,0.293543]
[1729501171366,0.146348,68330.0,68326.0,0.146355]
[1729501171596,0.155348,68330.0,68326.0,0.146355]
[1729501171835,0.009,68330.0,68325.0,0.000828]
[1729501172069,0.146351,68329.0,68325.0,0.147187]
[1729501173050,0.009,68330.0,68325.0,0.000828]
[1729501173295,0.146354,68328.0,68325.0,0.000828]
[1729501173987,0.29271,68327.0,68325.0,0.000828]
[1729501174218,0.146354,68328.0,68325.0,0.000828]
[1729501174450,0.146356,68327.0,68325.0,0.000828]
[1729501174687,0.008,68328.0,68325.0,0.000828]
[1729501174936,0.36198852,68329.0,68325.0,0.000828]
[1729501174937,0.21563652,68329.0,68325.0,0.000828]
[1729501175157,0.154355,68327.0,68325.0,0.000828]
[1729501175411,0.146357,68326.0,68325.0,0.000828]
[1729501175609,0.009,68328.0,68325.0,0.000828]
[1729501175827,0.146357,68326.0,68325.0,0.000828]
[1729501176075,0.009,68328.0,68325.0,0.000828]
[1729501176319,0.146357,68326.0,68325.0,0.000828]
[1729501176785,0.009,68329.0,68325.0,0.000828]
[1729501176998,0.009,68329.0,68325.0,0.147186]
[1729501177216,0.146355,68327.0,68325.0,0.000828]
[1729501177726,0.009,68326.0,68325.0,0.000828]
[1729501178201,0.008,68329.0,68325.0,0.000828]
[1729501178442,0.146354,68328.0,68325.0,0.000828]
[1729501178681,0.008,68327.0,68325.0,0.000828]
[1729501178918,0.146353,68328.0,68325.0,0.000828]
[1729501179383,0.008,68326.0,68325.0,0.000828]
[1729501179825,0.008,68326.0,68325.0,0.147187]
[1729501180101,0.017,68326.0,68325.0,0.147187]
[1729501180549,0.017,68326.0,68325.0,0.000828]
[1729501180792,0.155357,68326.0,68325.0,0.000828]
[1729501181033,0.009,68326.0,68325.0,0.000828]
[1729501181266,0.009,68326.0,68325.0,0.147187]
[1729501181485,0.009,68326.0,68325.0,0.000828]
[1729501181975,0.009,68326.0,68325.0,0.147187]
[1729501182435,0.017,68326.0,68325.0,0.147187]
[1729501183958,0.017,68326.0,68325.0,0.15511386]
[1729501184166,0.017,68326.0,68325.0,0.48084615]
[1729501184895,0.017,68326.0,68325.0,0.49542752]
[1729501185601,0.009,68326.0,68325.0,0.49542752]
[1729501187224,0.001656,68332.0,68328.0,0.005]
[1729501187441,0.21563652,68330.0,68325.0,0.079428]
[1729501187650,0.001656,68332.0,68329.0,0.146349]
[1729501187878,0.001656,68332.0,68326.0,0.292714]
[1729501188093,0.146348,68330.0,68326.0,0.146356]
[1729501188320,0.146348,68330.0,68325.0,0.000828]
[1729501188321,0.21563652,68327.0,68325.0,0.002828]
[1729501188568,0.146352,68329.0,68325.0,0.000828]
[1729501188797,0.146352,68329.0,68325.0,0.147186]
[1729501189739,0.146349,68330.0,68326.0,0.146355]
[1729501191406,0.001656,68332.0,68327.0,0.146354]
[1729501191621,0.002,68330.0,68327.0,0.146354]
[1729501191841,0.146352,68328.0,68325.0,0.000828]
[1729501192930,0.292702,68329.0,68325.0,0.000828]
[1729501192931,0.003,68330.0,68329.0,0.14635]
[1729501193152,0.003,68330.0,68327.0,0.146353]
[1729501193366,0.004656,68332.0,68328.0,0.146352]
[1729501193589,0.001656,68330.0,68328.0,0.146352]
[1729501194271,0.001656,68330.0,68327.0,0.29271]
[1729501194272,0.001,68328.0,68327.0,0.29271]
[1729501194475,0.001656,68330.0,68327.0,0.439063]
[1729501194689,0.001656,68330.0,68327.0,0.146353]
[1729501194904,0.005656,68330.0,68327.0,0.146353]
[1729501195325,0.006656,68330.0,68327.0,0.146353]
[1729501195538,0.003,68328.0,68327.0,0.146353]
[1729501195965,0.006656,68330.0,68327.0,0.146353]
[1729501196619,0.006656,68330.0,68325.0,0.000828]
[1729501196620,0.148005,68330.0,68326.0,0.146356]
[1729501196865,0.155005,68330.0,68326.0,0.146357]
[1729501197080,0.008656,68330.0,68325.0,0.000828]
[1729501197312,0.001656,68330.0,68325.0,0.000828]
[1729501197551,0.146352,68328.0,68325.0,0.000828]
[1729501197764,0.292701,68329.0,68325.0,0.000828]
[1729501198221,0.146355,68327.0,68325.0,0.000828]
[1729501198436,0.292701,68329.0,68325.0,0.000828]
[1729501198653,0.018656,68330.0,68326.0,0.146355]
[1729501198654,0.010656,68330.0,68326.0,0.146355]
[1729501198874,0.008,68329.0,68325.0,0.000828]
[1729501199084,0.154351,68329.0,68325.0,0.000828]
[1729501199291,0.146353,68328.0,68325.0,0.000828]
[1729501200167,0.146356,68327.0,68325.0,0.000828]
[1729501200380,0.292705,68328.0,68325.0,0.000828]
[1729501200596,0.29271,68327.0,68325.0,0.000828]
[1729501200817,0.36699352,68326.0,68325.0,0.000828]
[1729501201034,0.327757,68326.0,68325.0,0.000828]
[1729501202382,0.335757,68326.0,68325.0,0.000828]
[1729501203707,0.327757,68326.0,68325.0,0.000828]
[1729501203925,0.338757,68326.0,68325.0,0.000828]
[1729501204141,0.348757,68326.0,68325.0,0.000828]
[1729501204567,0.337757,68326.0,68325.0,0.000828]
[1729501205034,0.339757,68326.0,68325.0,0.000828]
[1729501205230,0.81890616,68326.0,68325.0,0.000828]
[1729501205467,0.49971615,68326.0,68325.0,0.000828]
[1729501205682,0.39423976,68326.0,68325.0,0.000828]
[1729501206359,0.49971615,68326.0,68325.0,0.000828]
[1729501206578,0.5649403,68326.0,68325.0,0.000828]
[1729501207215,0.49971615,68326.0,68325.0,0.000828]
[1729501208334,0.54316594,68326.0,68325.0,0.000828]
[1729501211359,0.49971615,68326.0,68325.0,0.000828]
[1729501213869,0.023,68326.0,68325.0,0.147187]
[1729501214338,0.023,68326.0,68325.0,0.000828]
[1729501215035,0.012,68326.0,68325.0,0.000828]
[1729501215266,0.154357,68326.0,68325.0,0.000828]
[1729501215733,0.157357,68326.0,68325.0,0.000828]
[1729501215977,0.158357,68326.0,68325.0,0.000828]
[1729501216265,0.152357,68326.0,68325.0,0.000828]
[1729501216485,0.158357,68326.0,68325.0,0.000828]
[1729501216744,0.164357,68326.0,68325.0,0.000828]
[1729501216984,0.30631615,68326.0,68325.0,0.000828]
[1729501217419,0.31931615,68326.0,68325.0,0.000828]
[1729501217908,0.31318717,68326.0,68325.0,0.000828]
[1729501218163,0.32318717,68326.0,68325.0,0.000828]
[1729501218623,0.31018717,68326.0,68325.0,0.000828]
[1729501218868,0.32318717,68326.0,68325.0,0.000828]
[1729501219083,0.31118717,68326.0,68325.0,0.000828]
[1729501219530,0.31418717,68326.0,68325.0,0.00107977]
[1729501219758,0.32818717,68326.0,68325.0,0.00107977]
[1729501227210,0.32580929,68326.0,68325.0,0.00107977]
[1729501228932,0.033,68326.0,68325.0,0.00107977]
[1729501229260,0.028,68326.0,68325.0,0.14743877]
[1729501229493,0.028,68326.0,68325.0,0.23323877]
[1729501229759,0.028,68326.0,68325.0,0.47239792]
[1729501230258,0.014,68326.0,68325.0,0.47239792]
[1729501230511,0.014,68326.0,68325.0,0.48695398]
[1729501231264,0.014,68326.0,68325.0,0.31843877]
[1729501231552,0.014,68326.0,68325.0,0.22823877]
[1729501231773,0.014,68326.0,68325.0,0.00107977]
[1729501232504,0.160357,68326.0,68325.0,0.00107977]
[1729501232750,0.014,68326.0,68325.0,0.00107977]
[1729501232987,0.014,68326.0,68325.0,0.14743877]
[1729501237463,0.014,68326.0,68325.0,0.15701604]
[1729501240665,0.014,68326.0,68325.0,0.15701601]
[1729501241641,0.014,68326.0,68325.0,0.15243877]
[1729501241872,0.014,68326.0,68325.0,0.15701601]
[1729501245323,0.014,68326.0,68325.0,0.15243877]
[1729501245793,0.015656,68326.0,68325.0,0.15243877]
[1729501248292,0.162013,68326.0,68325.0,0.00107977]
[1729501249310,0.015656,68326.0,68325.0,0.00107977]
[1729501251523,0.162013,68326.0,68325.0,0.00107977]
[1729501253264,0.148013,68326.0,68325.0,0.00107977]
[1729501253767,0.151013,68326.0,68325.0,0.00107977]
[1729501254009,0.148013,68326.0,68325.0,0.00107977]
[1729501254236,0.157013,68326.0,68325.0,0.00107977]
[1729501254766,0.010656,68326.0,68325.0,0.00107977]
[1729501255009,0.157013,68326.0,68325.0,0.00107977]
[1729501255241,0.010656,68326.0,68325.0,0.00107977]
[1729501255919,0.010656,68326.0,68325.0,0.14743877]
[1729501256149,0.010656,68326.0,68325.0,0.00107977]
[1729501258040,0.157013,68326.0,68325.0,0.00107977]
[1729501260742,0.010656,68326.0,68325.0,0.00107977]
[1729501260984,0.349613,68326.0,68325.0,0.00107977]
[1729501266504,0.203256,68326.0,68317.0,0.13226873]
[1729501266734,0.203256,68326.0,68318.0,0.146374]
[1729501266735,0.146367,68321.0,68318.0,0.146374]
[1729501267180,0.146367,68321.0,68316.0,0.36185956]
[1729501267408,0.151376,68317.0,68316.0,0.21548256]
[1729501269010,0.160376,68317.0,68316.0,0.21548256]
[1729501269925,0.174376,68317.0,68316.0,0.21548256]
[1729501270162,0.165376,68317.0,68316.0,0.21548256]
[1729501270628,0.179376,68317.0,68316.0,0.21548256]
[1729501273182,0.033,68317.0,68316.0,0.21548256]
[1729501273447,0.179376,68317.0,68316.0,0.21548256]
[1729501273683,0.164776,68317.0,68316.0,0.21548256]
[1729501275430,0.40933515,68317.0,68316.0,0.21548256]
[1729501275674,0.51293515,68317.0,68316.0,0.21548256]
[1729501275915,0.61293515,68317.0,68316.0,0.21548256]
[1729501276153,0.65641616,68317.0,68316.0,0.21548256]
[1729501276883,0.61293515,68317.0,68316.0,0.21548256]
[1729501277168,0.84624364,68317.0,68316.0,0.21548256]
[1729501277429,0.61053515,68317.0,68316.0,0.21548256]
[1729501277679,0.61053515,68317.0,68316.0,0.21648256]
[1729501277680,0.7668429,68317.0,68316.0,0.21648256]
[1729501277932,0.60453515,68317.0,68316.0,0.21648256]
[1729501278209,0.60853515,68317.0,68316.0,0.21548256]
[1729501278479,0.66965722,68317.0,68316.0,0.21648256]
[1729501279023,0.65965686,68317.0,68316.0,0.21548256]
[1729501279317,0.585466,68322.0,68316.0,0.21548256]
[1729501279318,0.24376,68325.0,68316.0,0.21548256]
[1729501279573,0.21563652,68321.0,68316.0,0.21648256]
[1729501279860,0.001656,68326.0,68318.0,0.292748]
[1729501280098,0.001656,68326.0,68316.0,0.21648256]
[1729501280099,0.36199552,68325.0,68317.0,0.292752]
[1729501280332,0.36199552,68325.0,68316.0,0.21648256]
[1729501280333,0.36199552,68325.0,68320.0,0.146369]
[1729501280596,0.17169649,68325.0,68318.0,0.292746]
[1729501280850,0.001656,68326.0,68322.0,0.29273]
[1729501281098,0.001656,68326.0,68324.0,0.146361]
[1729501281576,0.001656,68326.0,68322.0,0.146363]
[1729501281809,0.001656,68326.0,68320.0,0.292738]
[1729501281810,0.002,68325.0,68321.0,0.146367]
[1729501282073,0.003,68325.0,68318.0,0.005]
[1729501282339,0.001,68325.0,68318.0,0.005]
[1729501282568,0.14736,68325.0,68320.0,0.146367]
[1729501282796,0.146362,68324.0,68320.0,0.146367]
[1729501283291,0.146371,68320.0,68316.0,0.21631056]
[1729501283551,0.146362,68324.0,68319.0,0.14637]
[1729501283794,0.292718,68325.0,68317.0,0.146374]
[1729501284035,0.146369,68321.0,68316.0,0.36268856]
[1729501284495,0.146368,68321.0,68316.0,0.36268756]
[1729501284724,0.146368,68321.0,68317.0,0.146376]
[1729501285506,0.292727,68323.0,68316.0,0.21631056]
[1729501285752,0.292735,68321.0,68316.0,0.21631056]
[1729501286004,0.21729252,68326.0,68316.0,0.21631056]
[1729501286275,0.292722,68324.0,68316.0,0.21631056]
[1729501286475,0.21729252,68326.0,68316.0,0.21631056]
[1729501286707,0.293736,68321.0,68316.0,0.21631056]
[1729501286940,0.146372,68320.0,68316.0,0.21631056]
[1729501287415,0.146373,68319.0,68316.0,0.21631056]
[1729501288093,0.14564111,68319.0,68316.0,0.21631056]
[1729501288576,0.21563652,68324.0,68319.0,0.146372]
[1729501288798,0.146365,68322.0,68318.0,0.146373]
[1729501289021,0.29272,68325.0,68320.0,0.146369]
[1729501289022,0.14636,68325.0,68320.0,0.146369]
[1729501289256,0.001656,68326.0,68325.0,0.146359]
[1729501290649,0.006656,68326.0,68325.0,0.146359]
[1729501291099,0.001656,68326.0,68325.0,0.146359]
[1729501291541,0.006656,68326.0,68325.0,0.146359]
[1729501291990,0.012656,68326.0,68325.0,0.147359]
[1729501295389,0.012656,68326.0,68325.0,0.15528592]
[1729501295615,0.012656,68326.0,68325.0,0.152359]
[1729501301825,0.012656,68326.0,68325.0,0.15528578]
[1729501302290,0.012656,68326.0,68325.0,0.152359]
[1729501305474,0.006656,68326.0,68325.0,0.151359]
[1729501305745,0.004656,68326.0,68325.0,0.151359]
[1729501305959,0.007656,68326.0,68325.0,0.151359]
[1729501311771,0.004656,68326.0,68325.0,0.151359]
[1729501312013,0.001656,68326.0,68325.0,0.151359]
[1729501312267,0.001656,68326.0,68325.0,0.30031815]
[1729501312488,0.001656,68326.0,68325.0,0.30531815]
[1729501312489,0.002656,68326.0,68325.0,0.30531815]
[1729501312712,0.002656,68326.0,68325.0,0.31531815]
[1729501312943,0.001656,68326.0,68325.0,0.31031815]
[1729501313679,0.001656,68326.0,68325.0,0.31131815]
[1729501313961,0.001656,68326.0,68325.0,0.31331815]
[1729501314208,0.001656,68326.0,68325.0,0.59091815]
[1729501314960,0.001656,68326.0,68325.0,0.62019815]
[1729501315214,0.001656,68326.0,68325.0,0.59091815]
[1729501315461,0.001656,68326.0,68325.0,0.63363542]
[1729501315707,0.002656,68326.0,68325.0,0.66049289]
[1729501315941,0.003656,68326.0,68325.0,0.59091815]
[1729501316173,0.003656,68326.0,68325.0,0.6346361]
[1729501316174,0.002656,68326.0,68325.0,0.6346361]
[1729501316422,0.002656,68326.0,68325.0,0.59491815]
[1729501316645,0.003656,68326.0,68325.0,0.59591815]
[1729501316878,0.001656,68326.0,68325.0,0.58991815]
[1729501317141,0.001656,68326.0,68325.0,0.6336361]
[1729501317393,0.003656,68326.0,68325.0,0.59591815]
[1729501317876,0.003656,68326.0,68325.0,0.63961924]
[1729501318112,0.003656,68326.0,68325.0,0.59591815]
[1729501318611,0.001656,68326.0,68325.0,0.65661924]
[1729501318870,0.002656,68326.0,68325.0,0.66161366]
[1729501319113,0.003656,68326.0,68325.0,0.61891815]
[1729501319606,0.003656,68326.0,68325.0,0.59491815]
[1729501319853,0.001656,68326.0,68325.0,0.58991815]
[1729501320089,0.002656,68326.0,68325.0,0.59591815]
[1729501320346,0.003656,68326.0,68325.0,0.59591815]
[1729501320597,0.004656,68326.0,68325.0,0.59691815]
[1729501321102,0.004656,68326.0,68325.0,0.41731815]
[1729501321628,0.003656,68326.0,68325.0,0.41231815]
[1729501322313,0.004656,68326.0,68325.0,0.41731815]
[1729501322573,0.002656,68326.0,68325.0,0.41531815]
[1729501322830,0.001656,68326.0,68325.0,0.41031815]
[1729501323283,0.002656,68326.0,68325.0,0.41531815]
[1729501323984,0.00076792,68326.0,68325.0,0.41431815]
[1729501325011,0.00176792,68326.0,68325.0,0.40531815]
[1729501325251,0.00176792,68326.0,68325.0,0.156359]
[1729501325513,0.09876792,68326.0,68325.0,0.001]
[1729501326034,0.09876792,68326.0,68325.0,0.004]
[1729501326514,0.09876792,68326.0,68325.0,0.001]
[1729501327241,0.09876792,68326.0,68320.0,0.292735]
[1729501327242,0.09776792,68326.0,68323.0,0.146363]
[1729501327435,0.09776792,68326.0,68325.0,0.146359]
[1729501327706,0.10576792,68326.0,68325.0,0.001]
[1729501327923,0.10576792,68326.0,68321.0,0.292735]
[1729501328190,0.09776792,68326.0,68323.0,0.146362]
[1729501328422,0.09776792,68326.0,68321.0,0.292735]
[1729501328423,0.10776792,68326.0,68321.0,0.292735]
[1729501328724,0.10476792,68326.0,68323.0,0.146362]
[1729501328974,0.09776792,68326.0,68323.0,0.146362]
[1729501329218,0.09776792,68326.0,68324.0,0.14636]
[1729501329472,0.10276792,68326.0,68323.0,0.292727]
[1729501329718,0.10276792,68326.0,68325.0,0.146359]
[1729501330175,0.11076792,68326.0,68325.0,0.146359]
[1729501330424,0.10276792,68326.0,68325.0,0.146359]
[1729501330658,0.09776792,68326.0,68320.0,0.29274]
[1729501330878,0.10376792,68326.0,68319.0,0.000828]
[1729501331102,0.10476792,68326.0,68322.0,0.146364]
[1729501331382,0.10476792,68326.0,68323.0,0.146361]
[1729501331608,0.10576792,68326.0,68323.0,0.146361]
[1729501331838,0.10176792,68326.0,68324.0,0.14636]
[1729501332085,0.10176792,68326.0,68321.0,0.292735]
[1729501332309,0.10176792,68326.0,68325.0,0.146359]
[1729501332532,0.09776792,68326.0,68325.0,0.146359]
[1729501333462,0.09976792,68326.0,68325.0,0.146359]
[1729501333674,0.10476792,68326.0,68325.0,0.146359]
[1729501333903,0.11276792,68326.0,68325.0,0.146359]
[1729501334128,0.10576792,68326.0,68325.0,0.146359]
[1729501334577,0.11476792,68326.0,68325.0,0.146359]
[1729501336668,0.14637,68320.0,68319.0,0.000828]
[1729501336911,0.24137,68320.0,68319.0,0.000828]
[1729501337159,0.1767,68320.0,68319.0,0.000828]
[1729501337394,0.32307,68320.0,68319.0,0.000828]